bitfinex/quotes_ETHUSD_20250323
["timestamp","ask_amount","ask_price","bid_price","bid_amount"]
[1742721792329,4.9613,2015.6,2015.3,5.61141]
[1742721792541,4.9613,2015.6,2015.5,1.13551954]
[1742721792743,4.9613,2015.6,2015.3,5.61141]
[1742721793253,4.9613,2015.6,2015.4,1.13551954]
[1742721793433,4.9613,2015.6,2015.3,5.61141]
[1742721793634,4.9613,2015.6,2015.4,1.13551954]
[1742721793834,4.9613,2015.6,2015.3,5.61141]
[1742721794166,4.9613,2015.6,2015.4,1.13551954]
[1742721794544,4.9613,2015.6,2015.3,0.6494]
[1742721794744,4.9613,2015.6,2015.5,1.13551954]
[1742721794954,4.9613,2015.6,2015.3,0.6494]
[1742721795134,4.9613,2015.6,2015.5,1.13551954]
[1742721795334,4.9613,2015.6,2015.3,0.6494]
[1742721795842,4.9613,2015.6,2015.4,1.13551954]
[1742721796043,4.9613,2015.6,2015.3,0.6494]
[1742721796244,4.9613,2015.6,2015.4,1.13551954]
[1742721796444,4.9613,2015.6,2015.3,0.6494]
[1742721796655,4.9613,2015.6,2015.4,1.13551954]
[1742721796857,4.9613,2015.6,2015.3,0.6494]
[1742721797060,4.9613,2015.6,2015.4,1.13551954]
[1742721797260,4.9613,2015.6,2015.3,0.6494]
[1742721797460,4.9613,2015.6,2015.4,1.13551954]
[1742721797657,4.9613,2015.6,2015.3,0.6494]
[1742721797860,4.9613,2015.6,2015.4,1.13551954]
[1742721798065,4.9613,2015.6,2015.3,0.6494]
[1742721798235,4.9613,2015.6,2015.4,1.13551954]
[1742721798433,4.9613,2015.6,2015.3,0.6494]
[1742721798434,9.92279,2015.6,2015.3,0.6494]
[1742721798638,4.9613,2015.6,2015.4,1.13551954]
[1742721798845,4.9613,2015.6,2015.2,36.17042895]
[1742721799045,4.9613,2015.6,2015.3,1.13551954]
[1742721799850,5.7392,2015.6,2015.3,1.13551954]
[1742721808880,4.96166,2015.5,2015.4,4.596]
[1742721809046,7.23964853,2015.5,2015.4,5.73170642]
[1742721815084,7.23964853,2015.5,2015.4,1.13570642]
[1742721815388,5.72839,2015.3,2015.1,4.596]
[1742721821345,7.22847853,2015.3,2015.1,4.596]
[1742721821795,12.19070853,2015.3,2015.1,4.596]
[1742721821996,7.22847853,2015.3,2015.1,4.596]
[1742721822615,5.72839,2015.3,2015.1,4.596]
[1742721823328,4.96253,2015.1,2015.0,26.234]
[1742721823629,7.22881853,2015.1,2015.0,30.83]
[1742721823793,7.22881853,2015.1,2015.0,26.234]
[1742721826494,5.72873,2015.1,2015.0,26.234]
[1742721826700,4.96237,2015.2,2015.0,26.234]
[1742721827335,6.46245853,2015.2,2015.0,26.234]
[1742721829015,6.46245853,2015.2,2015.1,1.1410034]
[1742721831753,6.46245853,2015.2,2014.8,4.596]
[1742721831754,4.96302,2014.9,2014.8,4.596]
[1742721831951,7.24650853,2014.9,2014.8,4.596]
[1742721835735,4.96327,2014.8,2014.7,26.239]
[1742721836059,6.46335853,2014.8,2014.7,26.239]
[1742721836356,7.24675853,2014.8,2014.7,26.239]
[1742721836580,4.96425,2014.4,2014.3,4.597]
[1742721837364,4.96425,2014.4,2014.2,4.597]
[1742721838552,9.92872,2014.4,2014.2,4.597]
[1742721838741,4.96425,2014.4,2014.2,4.597]
[1742721840760,4.9645,2014.3,2014.2,4.597]
[1742721840964,6.46458853,2014.3,2014.1,4.597]
[1742721841459,6.46458853,2014.3,2014.0,26.24]
[1742721841460,7.27811853,2014.2,2014.0,26.24]
[1742721841665,6.46507853,2014.1,2014.0,26.24]
[1742721841963,4.96499,2014.1,2014.0,26.24]
[1742721842264,6.46507853,2014.1,2014.0,26.24]
[1742721843966,6.46507853,2014.1,2014.0,27.38561703]
[1742721845164,7.46919375,2014.1,2014.0,27.38561703]
[1742721846968,4.96499,2014.1,2014.0,27.38561703]
[1742721847148,5.77803,2014.2,2014.0,27.38561703]
[1742721847577,4.96499,2014.1,2014.0,27.38561703]
[1742721849668,9.92991,2014.2,2014.0,27.38561703]
[1742721849877,4.96499,2014.1,2014.0,27.38561703]
[1742721851706,3.00670205,2014.3,2014.0,27.38561703]
[1742721851865,0.00670205,2014.3,2014.1,5.61423]
[1742721852195,0.00670205,2014.3,2014.2,1.15210233]
[1742721853891,0.00670205,2014.3,2014.2,6.11685233]
[1742721854267,0.00670205,2014.3,2014.2,1.15210233]
[1742721856972,0.00670205,2014.3,2014.2,1.67283352]
[1742721857183,0.00670205,2014.3,2014.2,6.11685233]
[1742721857476,0.00670205,2014.3,2014.2,6.76625233]
[1742721859665,0.00670205,2014.3,2014.2,1.80150233]
[1742721863327,0.00670205,2014.3,2014.2,1.15210233]
[1742721863487,0.00670205,2014.3,2014.0,34.35863375]
[1742721863885,0.00670205,2014.3,2014.1,1.15122908]
[1742721865617,0.00670205,2014.3,2014.2,4.598]
[1742721866129,4.97120205,2014.3,2014.2,4.598]
[1742721866302,4.97120205,2014.3,2014.2,5.74922908]
[1742721868238,4.97120205,2014.3,2014.2,1.15122908]
[1742721868407,7.35424326,2014.3,2014.2,1.15122908]
[1742721868591,4.96499,2014.1,2014.0,26.24]
[1742721873907,4.96499,2014.1,2014.0,27.39085464]
[1742721875320,5.74589,2014.1,2014.0,27.39085464]
[1742721880843,5.74589,2014.1,2014.0,1.15085464]
[1742721881141,4.96548,2013.9,2013.8,4.599]
[1742721881353,4.96548,2013.9,2013.8,5.7529114]
[1742721883720,5.74638,2013.9,2013.8,5.7529114]
[1742721884057,7.24878735,2013.9,2013.8,1.1539114]
[1742721884415,4.96598,2013.7,2013.6,4.599]
[1742721884961,4.96598,2013.7,2013.5,27.75540735]
[1742721885130,4.96598,2013.7,2013.6,4.599]
[1742721887359,4.96598,2013.7,2013.5,30.852]
[1742721887559,4.96622,2013.6,2013.5,30.852]
[1742721889029,4.96622,2013.6,2013.5,32.0059114]
[1742721889848,4.96622,2013.6,2013.5,27.4069114]
[1742721890149,4.96622,2013.6,2013.5,32.0059114]
[1742721891363,6.46862735,2013.6,2013.5,27.4069114]
[1742721891558,4.96622,2013.6,2013.5,27.4069114]
[1742721892064,6.46862735,2013.6,2013.5,27.4069114]
[1742721892268,4.96622,2013.6,2013.5,27.4069114]
[1742721898069,6.78864453,2013.6,2013.5,27.4069114]
[1742721898548,9.29382985,2013.6,2013.5,27.4069114]
[1742721898871,10.11492985,2013.6,2013.5,27.4069114]
[1742721899067,10.11492985,2013.6,2013.5,1.1539114]
[1742721899437,4.96696,2013.3,2013.2,4.599]
[1742721900041,9.93415,2013.3,2013.1,4.609]
[1742721900242,4.96696,2013.3,2013.1,4.609]
[1742721900853,9.93404,2013.3,2013.1,4.609]
[1742721901055,4.96696,2013.3,2013.1,4.609]
[1742721903054,4.96721,2013.2,2013.1,4.609]
[1742721903975,4.96721,2013.2,2013.1,5.75683335]
[1742721904890,6.042637,2013.2,2013.1,1.15783335]
[1742721905076,6.042637,2013.2,2013.1,5.75783335]
[1742721905994,6.042637,2013.2,2013.1,1.15783335]
[1742721906167,4.96721,2013.2,2013.1,1.15783335]
[1742721909653,4.96697,2013.3,2013.1,1.15783335]
[1742721909654,3.0,2013.5,2013.1,6.77458335]
[1742721909877,12.93333,2013.5,2013.1,6.77458335]
[1742721910093,4.96673,2013.4,2013.1,1.80723335]
[1742721910688,4.96673,2013.4,2013.1,6.77467335]
[1742721910891,7.96652,2013.5,2013.1,6.77467335]
[1742721911388,7.96602,2013.7,2013.3,0.6494]
[1742721911583,7.96602,2013.7,2013.4,5.75684453]
[1742721911892,4.96626,2013.6,2013.4,5.75684453]
[1742721913374,7.96604,2013.7,2013.4,5.75684453]
[1742721915685,4.96604,2013.7,2013.4,5.75684453]
[1742721915894,4.96635,2013.6,2013.4,5.75684453]
[1742721916061,4.96604,2013.7,2013.4,5.75684453]
[1742721916261,4.96589,2013.8,2013.4,10.72355453]
[1742721916658,4.96589,2013.8,2013.5,0.6494]
[1742721916901,9.93117,2013.9,2013.5,5.61584]
[1742721917087,11.79320958,2013.9,2013.5,5.61584]
[1742721917290,4.96573,2013.8,2013.6,1.15684453]
[1742721923512,9.93166,2013.8,2013.6,1.15684453]
[1742721924081,4.96598,2013.7,2013.6,1.15684453]
[1742721928225,4.96584,2013.8,2013.6,1.15684453]
[1742721929828,6.82761958,2013.9,2013.6,1.15684453]
[1742721930030,4.96589,2013.8,2013.6,1.15684453]
[1742721932228,9.93187,2013.8,2013.6,1.15684453]
[1742721932610,4.96598,2013.7,2013.6,1.15684453]
[1742721940441,4.96598,2013.7,2013.4,30.861]
[1742721940638,4.96598,2013.7,2013.6,1.15796748]
[1742721940856,4.96598,2013.7,2013.4,30.861]
[1742721941369,4.96598,2013.7,2013.5,1.15796748]
[1742721945371,6.22661096,2013.7,2013.5,1.15796748]
[1742721945577,4.96622,2013.6,2013.5,4.599]
[1742721945754,6.22667096,2013.7,2013.5,4.599]
[1742721948979,6.22667096,2013.7,2013.6,1.15784261]
[1742721960589,1.26063096,2013.7,2013.6,1.15784261]
[1742721960788,0.8141,2014.0,2013.6,6.12394261]
[1742721960981,13.74492,2014.0,2013.6,6.12394261]
[1742721961676,8.77946,2014.0,2013.6,7.62655447]
[1742721962058,8.77946,2014.0,2013.6,6.12394261]
[1742721962259,8.77946,2014.0,2013.6,7.62655447]
[1742721962688,0.8141,2014.3,2013.9,6.46809186]
[1742721962892,0.8141,2014.5,2014.1,1.50261186]
[1742721963056,5.77817,2014.5,2014.2,1.1560953]
[1742721963585,4.96428,2014.4,2014.2,1.1560953]
[1742721963788,6.18878619,2014.4,2014.2,1.1560953]
[1742721963955,6.18878619,2014.4,2014.0,37.97523186]
[1742721964154,7.28078186,2014.5,2014.3,1.1560953]
[1742721964398,4.96389,2014.6,2014.2,6.46720186]
[1742721964689,4.96389,2014.6,2014.3,1.15547139]
[1742721964894,4.96389,2014.6,2014.2,6.46720186]
[1742721965093,4.96389,2014.6,2014.3,1.80487139]
[1742721965870,9.92789,2014.6,2014.3,1.80487139]
[1742721966101,4.96389,2014.6,2014.3,1.80487139]
[1742721966398,3.0,2014.7,2014.3,8.27193325]
[1742721966603,3.0,2014.7,2014.4,4.598]
[1742721966604,7.96353,2014.7,2014.4,4.598]
[1742721966803,3.0,2014.8,2014.4,11.06482186]
[1742721967025,1.39358952,2015.7,2014.6,2.15201186]
[1742721967026,4.96216,2015.3,2014.6,2.15201186]
[1742721967307,0.98650025,2015.2,2014.9,1.50261186]
[1742721967469,0.98650025,2015.2,2015.0,4.598]
[1742721967470,5.94888025,2015.2,2015.0,4.598]
[1742721967680,6.76298025,2015.2,2015.0,5.75347139]
[1742721967872,10.73898,2015.2,2015.0,5.75347139]
[1742721968071,10.7389,2015.2,2015.0,5.75347139]
[1742721968272,10.73889,2015.2,2015.0,5.75347139]
[1742721968695,4.96253,2015.1,2015.0,5.75347139]
[1742721969711,10.73891,2015.2,2015.0,5.75347139]
[1742721970285,5.77648,2015.2,2015.0,5.75347139]
[1742721970500,4.96238,2015.2,2015.0,5.75347139]
[1742721973906,9.9248,2015.2,2015.0,5.75347139]
[1742721974117,4.96238,2015.2,2015.0,5.75347139]
[1742721974279,9.92484,2015.2,2015.0,5.75347139]
[1742721974613,6.46514186,2015.1,2015.0,1.15547139]
[1742721974914,7.22044186,2015.1,2014.8,30.854]
[1742721975077,12.18319186,2015.1,2014.9,0.99983144]
[1742721975403,4.96284,2015.0,2014.8,30.854]
[1742721976998,7.22044186,2015.1,2014.8,30.854]
[1742721977906,6.46563186,2014.9,2014.8,26.257]
[1742721978089,4.96302,2014.9,2014.8,26.257]
[1742721979010,4.96302,2014.9,2014.8,27.25683144]
[1742721985617,6.46563186,2014.9,2014.8,27.25683144]
[1742721986614,6.46563186,2014.9,2014.8,0.99983144]
[1742721986998,6.46563186,2014.9,2014.6,4.596]
[1742721987198,6.46563186,2014.9,2014.8,1.00075581]
[1742721987397,7.69968555,2014.9,2014.6,4.596]
[1742721987598,6.46563186,2014.9,2014.8,1.00075581]
[1742721987787,6.46563186,2014.9,2014.6,4.596]
[1742721987987,6.46563186,2014.9,2014.8,1.00075581]
[1742721988187,6.46563186,2014.9,2014.6,4.596]
[1742721988399,6.46563186,2014.9,2014.8,1.00075581]
[1742721988599,7.80583027,2014.9,2014.6,4.596]
[1742721989097,7.80583027,2014.9,2014.7,1.00075581]
[1742721991993,2.84281027,2014.9,2014.7,1.00075581]
[1742721992231,2.25791186,2015.1,2014.8,4.96314]
[1742721992791,2.25791186,2015.1,2014.9,1.00075581]
[1742721992992,1.50261186,2015.0,2014.9,1.00075581]
[1742721993204,1.50261186,2015.0,2014.8,4.96314]
[1742721993530,1.50261186,2015.0,2014.9,1.00075581]
[1742721993694,1.50261186,2015.0,2014.8,4.96314]
[1742721993895,1.50261186,2015.0,2014.9,1.00075581]
[1742721994105,1.50261186,2015.0,2014.8,4.96314]
[1742721994304,1.50261186,2015.0,2014.9,1.00075581]
[1742721994504,1.50261186,2015.0,2014.8,4.96314]
[1742721994719,1.50261186,2015.0,2014.9,1.00075581]
[1742721994931,1.50261186,2015.0,2014.8,4.96314]
[1742721995133,1.50261186,2015.0,2014.9,1.00007792]
[1742721995306,1.50261186,2015.0,2014.8,4.96314]
[1742721995627,1.50261186,2015.0,2014.9,1.00007792]
[1742721995797,7.22045186,2015.1,2014.9,1.00007792]
[1742721995992,7.22045186,2015.1,2014.8,4.96314]
[1742721996193,10.22045186,2015.1,2015.0,1.00007792]
[1742721996403,10.22045186,2015.1,2014.7,5.61284]
[1742721996625,10.22045186,2015.1,2015.0,1.00007792]
[1742721996793,10.22045186,2015.1,2014.7,5.61284]
[1742721996988,10.22045186,2015.1,2015.0,1.00007792]
[1742721997195,10.22045186,2015.1,2014.7,5.61284]
[1742721997396,10.22045186,2015.1,2015.0,1.00007792]
[1742721997596,11.83698959,2015.1,2014.7,5.61284]
[1742721997799,1.50261186,2015.0,2014.7,5.61284]
[1742721998440,1.50261186,2014.9,2014.6,9.55972]
[1742722000042,11.42853186,2015.0,2014.6,9.55972]
[1742722000440,4.96303,2014.9,2014.6,9.55972]
[1742722007141,4.96303,2014.9,2014.6,4.596]
[1742722008941,6.46556186,2015.0,2014.7,1.00007792]
[1742722008942,11.42845186,2015.0,2014.7,1.00007792]
[1742722009137,4.96289,2015.0,2014.8,0.6494]
[1742722009341,4.96213,2015.3,2014.8,2.15201186]
[1742722009505,6.46474186,2015.3,2014.9,5.96287792]
[1742722009709,6.46474186,2015.3,2015.0,4.596]
[1742722010138,11.42698186,2015.3,2015.1,1.00026279]
[1742722010339,11.42694186,2015.3,2015.1,1.00026279]
[1742722010512,6.46474186,2015.3,2015.1,1.00026279]
[1742722011459,2.25961186,2015.5,2015.1,1.64966279]
[1742722011758,6.46441186,2015.4,2015.1,1.64966279]
[1742722013149,4.96165,2015.5,2015.1,6.61218279]
[1742722013334,6.46426186,2015.5,2015.1,6.61200279]
[1742722013653,4.96165,2015.5,2015.2,4.96226]
[1742722014055,4.96165,2015.5,2015.1,6.61200279]
[1742722014056,11.42592186,2015.5,2015.3,0.99884577]
[1742722014266,6.46426186,2015.5,2015.3,0.99884577]
[1742722014563,6.46426186,2015.5,2015.4,0.99884577]
[1742722014717,6.46426186,2015.5,2015.1,5.61174]
[1742722014917,6.46426186,2015.5,2015.2,0.99884577]
[1742722020959,1.50261186,2015.4,2015.2,0.99884577]
[1742722021619,6.46443186,2015.4,2015.2,0.99884577]
[1742722024859,0.7673,2015.5,2015.2,0.99884577]
[1742722024860,4.96161,2015.5,2015.2,0.99884577]
[1742722025191,6.46422186,2015.5,2015.2,0.99884577]
[1742722028852,11.42598186,2015.5,2015.2,0.99884577]
[1742722029047,7.23180186,2015.4,2015.2,0.99884577]
[1742722030669,4.96189,2015.4,2015.2,0.99884577]
[1742722031607,6.46450186,2015.4,2015.2,0.99884577]
[1742722032409,6.46450186,2015.4,2015.3,0.99644315]
[1742722032751,6.46450186,2015.4,2015.0,14.52133]
[1742722033095,6.46450186,2015.4,2015.1,0.99644315]
[1742722033708,1.50261186,2015.4,2015.1,5.95894315]
[1742722034732,6.46442186,2015.4,2015.1,0.99644315]
[1742722035018,1.50261186,2015.4,2015.1,0.99644315]
[1742722035168,1.50261186,2015.4,2015.1,5.95895315]
[1742722036614,1.50261186,2015.2,2015.1,0.99644315]
[1742722036903,7.24504186,2015.3,2015.2,4.595]
[1742722037407,7.24504186,2015.3,2015.2,5.5922439]
[1742722040306,5.74243,2015.3,2015.2,5.5922439]
[1742722040488,6.46444186,2015.4,2015.2,5.5922439]
[1742722040714,4.96183,2015.4,2015.2,5.5922439]
[1742722041216,0.7803,2015.5,2015.2,10.5543139]
[1742722041766,4.96155,2015.5,2015.2,10.5543139]
[1742722042674,6.46416186,2015.5,2015.2,10.5543139]
[1742722043604,6.46416186,2015.5,2015.2,5.5922439]
[1742722043782,1.50261186,2015.4,2015.2,5.5922439]
[1742722043982,6.46440186,2015.4,2015.2,5.5922439]
[1742722044583,4.96179,2015.4,2015.3,0.6494]
[1742722044809,3.0,2015.9,2015.5,4.96154]
[1742722045008,4.50261186,2015.9,2015.6,9.55928]
[1742722045181,9.46318186,2015.9,2015.6,9.55928]
[1742722045381,9.46318186,2015.9,2015.7,0.99755192]
[1742722045598,9.46318186,2015.9,2015.6,4.598]
[1742722045798,9.46318186,2015.9,2015.7,0.99755192]
[1742722046001,9.46318186,2015.9,2015.6,4.598]
[1742722046210,9.46318186,2015.9,2015.8,0.99755192]
[1742722046412,9.46318186,2015.9,2015.6,4.598]
[1742722046612,0.50505994,2015.8,2015.6,4.598]
[1742722046782,0.50505994,2015.8,2015.7,0.87285793]
[1742722047114,0.50505994,2015.8,2015.6,4.598]
[1742722047406,6.46310186,2016.0,2015.7,0.76375069]
[1742722047599,4.96056,2015.9,2015.7,0.76375069]
[1742722047798,4.96056,2015.9,2015.6,10.20855]
[1742722048013,6.46317186,2015.9,2015.7,0.76375069]
[1742722048410,6.46317186,2015.9,2015.6,5.2474]
[1742722048612,6.46317186,2015.9,2015.8,0.76375069]
[1742722048811,6.46317186,2015.9,2015.6,5.2474]
[1742722049013,6.46317186,2015.9,2015.8,0.76375069]
[1742722049213,6.46317186,2015.9,2015.6,5.2474]
[1742722049407,6.46317186,2015.9,2015.8,0.76375069]
[1742722049614,6.46317186,2015.9,2015.6,5.2474]
[1742722049835,6.46317186,2015.9,2015.8,0.76375069]
[1742722049981,6.46317186,2015.9,2015.6,5.2474]
[1742722050181,6.46317186,2015.9,2015.7,0.76122544]
[1742722050381,6.46317186,2015.9,2015.6,5.2474]
[1742722050611,6.46317186,2015.9,2015.7,0.76122544]
[1742722051213,6.46317186,2015.9,2015.8,0.76122544]
[1742722051428,0.7516,2016.5,2015.9,0.6494]
[1742722051591,6.46229186,2016.3,2016.0,4.598]
[1742722051797,6.46229186,2016.3,2016.1,0.75789962]
[1742722052338,4.95982,2016.2,2016.1,0.75789962]
[1742722052831,6.46243186,2016.2,2016.1,0.75789962]
[1742722053219,6.46229186,2016.3,2016.1,0.75789962]
[1742722053817,11.42206186,2016.3,2016.1,0.75789962]
[1742722054018,1.50261186,2016.2,2016.1,0.75789962]
[1742722054202,7.67965805,2016.3,2016.1,0.75789962]
[1742722054616,12.63943805,2016.3,2016.1,0.75789962]
[1742722054817,6.17704619,2016.3,2016.1,0.75789962]
[1742722055013,6.46229186,2016.3,2016.1,0.75789962]
[1742722055217,1.50261186,2016.3,2016.1,0.75789962]
[1742722055620,6.46219186,2016.3,2016.1,0.75789962]
[1742722060528,1.50261186,2016.3,2016.1,0.75789962]
[1742722060863,6.46225186,2016.3,2016.1,0.75789962]
[1742722061024,6.46196186,2016.4,2016.1,0.75789962]
[1742722061218,6.46196186,2016.4,2016.1,1.40729962]
[1742722062032,4.95909,2016.5,2016.1,6.36733962]
[1742722062235,1.50261186,2016.4,2016.1,6.36726962]
[1742722062517,6.46170186,2016.5,2016.1,6.88800081]
[1742722062723,1.50261186,2016.4,2016.1,6.36726962]
[1742722064347,6.46195186,2016.4,2016.1,1.40729962]
[1742722065276,6.46195186,2016.4,2016.1,6.36734962]
[1742722065965,6.46195186,2016.4,2016.1,1.40729962]
[1742722068328,6.46194186,2016.4,2016.1,6.36733962]
[1742722069660,1.50261186,2016.4,2016.1,6.36733962]
[1742722069862,6.46196186,2016.4,2016.1,6.36733962]
[1742722070562,6.46196186,2016.4,2016.1,1.40729962]
[1742722073768,1.50261186,2016.4,2016.1,1.40729962]
[1742722073937,1.50261186,2016.4,2016.1,6.36729962]
[1742722074574,1.50261186,2016.6,2016.2,4.95979]
[1742722074879,6.46149186,2016.6,2016.3,0.75359013]
[1742722075069,6.46149186,2016.6,2016.4,4.593]
[1742722075440,6.46149186,2016.6,2016.5,0.75254374]
[1742722090685,7.21509186,2016.6,2016.5,0.75254374]
[1742722090864,9.22829705,2016.6,2016.5,0.75254374]
[1742722099708,8.47469705,2016.6,2016.5,0.75254374]
[1742722099996,6.46149186,2016.6,2016.5,0.75254374]
[1742722100390,4.95888,2016.6,2016.5,0.75254374]
[1742722103406,6.46149186,2016.6,2016.5,0.75254374]
[1742722107984,4.95888,2016.6,2016.5,0.75254374]
[1742722114415,4.94312467,2016.6,2016.5,0.75254374]
[1742722141247,10.37476395,2016.6,2016.5,0.75254374]
[1742722141437,11.87737581,2016.6,2016.5,0.75254374]
[1742722141642,4.95997,2016.2,2015.9,0.6494]
[1742722142151,4.95997,2016.2,2016.0,0.63125828]
[1742722142759,9.92001,2016.2,2016.0,0.63125828]
[1742722142922,4.96007,2016.1,2016.0,0.63125828]
[1742722144355,4.96007,2016.1,2016.0,5.22225828]
[1742722144737,4.96007,2016.1,2016.0,0.63125828]
[1742722144944,4.96007,2016.1,2016.0,5.22225828]
[1742722145825,4.96007,2016.1,2016.0,5.22325828]
[1742722149020,6.46268186,2016.1,2016.0,5.22325828]
[1742722149953,6.46268186,2016.1,2016.0,0.63125828]
[1742722150159,8.93151605,2016.1,2016.0,0.63125828]
[1742722150357,4.9608,2015.8,2015.7,4.592]
[1742722151426,4.9608,2015.8,2015.4,28.37401186]
[1742722151427,4.96117,2015.7,2015.4,28.37401186]
[1742722151659,4.96117,2015.7,2015.5,4.592]
[1742722152456,4.96117,2015.7,2015.4,28.37401186]
[1742722152673,4.96117,2015.7,2015.5,4.592]
[1742722153241,4.96145,2015.6,2015.5,4.592]
[1742722155481,4.96117,2015.7,2015.5,4.592]
[1742722156789,4.96117,2015.7,2015.5,6.09461186]
[1742722156936,0.7551,2015.9,2015.5,6.09461186]
[1742722157132,4.96069,2015.9,2015.6,1.50261186]
[1742722157465,4.96069,2015.9,2015.6,2.15201186]
[1742722159062,4.96069,2015.9,2015.7,0.63979247]
[1742722159465,4.96069,2015.9,2015.6,2.15201186]
[1742722159828,4.96069,2015.9,2015.7,0.63979247]
[1742722160033,4.96069,2015.9,2015.6,2.15201186]
[1742722160571,4.96069,2015.9,2015.7,0.63979247]
[1742722160773,4.96069,2015.9,2015.6,2.15201186]
[1742722160976,4.96069,2015.9,2015.8,0.63979247]
[1742722161159,4.96069,2015.9,2015.6,2.15201186]
[1742722161334,4.96069,2015.9,2015.8,0.63979247]
[1742722161535,4.96069,2015.9,2015.6,2.15201186]
[1742722161734,4.96069,2015.9,2015.7,0.63979247]
[1742722162059,4.96069,2015.9,2015.6,2.15201186]
[1742722162260,4.96069,2015.9,2015.8,0.63979247]
[1742722162445,4.96069,2015.9,2015.6,2.15201186]
[1742722162647,4.96069,2015.9,2015.8,0.63979247]
[1742722162877,4.96069,2015.9,2015.6,2.15201186]
[1742722163362,4.96069,2015.9,2015.7,0.63979247]
[1742722163568,4.96069,2015.9,2015.6,2.15201186]
[1742722163954,4.96069,2015.9,2015.7,0.63979247]
[1742722164178,4.96069,2015.9,2015.6,2.15201186]
[1742722164479,4.96069,2015.9,2015.8,0.63979247]
[1742722164638,4.96069,2015.9,2015.6,2.15201186]
[1742722164838,4.96069,2015.9,2015.8,0.63979247]
[1742722165079,4.96069,2015.9,2015.6,2.15201186]
[1742722165266,4.96069,2015.9,2015.8,0.63979247]
[1742722165442,4.96069,2015.9,2015.6,2.15201186]
[1742722165641,4.96069,2015.9,2015.8,0.63979247]
[1742722165856,4.96069,2015.9,2015.6,2.15201186]
[1742722166364,4.96069,2015.9,2015.7,0.63979247]
[1742722166678,4.96069,2015.9,2015.6,0.6494]
[1742722166879,4.96069,2015.9,2015.8,0.63979247]
[1742722167052,4.96069,2015.9,2015.6,0.6494]
[1742722167252,4.96069,2015.9,2015.8,0.63979247]
[1742722167478,4.96069,2015.9,2015.6,0.6494]
[1742722167675,4.96069,2015.9,2015.8,0.63979247]
[1742722167854,4.96069,2015.9,2015.6,2.15201186]
[1742722168176,4.96069,2015.9,2015.8,0.63979247]
[1742722168367,4.96069,2015.9,2015.6,2.15201186]
[1742722169093,4.96069,2015.9,2015.7,0.63893884]
[1742722169240,5.77971,2016.1,2015.7,2.1415507]
[1742722169577,4.96017,2016.1,2015.7,5.59998884]
[1742722170073,4.96017,2016.1,2015.7,7.1026007]
[1742722170458,9.92044,2016.1,2015.7,7.1026007]
[1742722170866,4.96017,2016.1,2015.7,7.1026007]
[1742722173279,4.96017,2016.1,2015.7,0.63893884]
[1742722173681,4.96038,2016.0,2015.6,7.11317186]
[1742722173872,4.96038,2016.0,2015.8,0.63893884]
[1742722174047,4.96038,2016.0,2015.9,4.592]
[1742722174247,4.96038,2016.0,2015.9,5.23093884]
[1742722175886,0.8196,2016.3,2015.9,5.23093884]
[1742722176096,4.96002,2016.2,2015.9,5.23093884]
[1742722177387,4.96011,2016.1,2015.9,5.23093884]
[1742722179990,1.50261186,2016.0,2015.9,0.63893884]
[1742722180301,4.96101,2015.8,2015.6,30.821]
[1742722180451,5.78695,2015.7,2015.6,26.229]
[1742722180652,7.28956186,2015.7,2015.6,26.229]
[1742722181246,4.96179,2015.4,2015.3,4.592]
[1742722181448,4.96209,2015.3,2015.2,4.592]
[1742722182381,4.96234,2015.2,2015.1,4.592]
[1742722186668,5.78799,2015.3,2015.1,4.592]
[1742722186869,10.75013,2015.3,2015.1,4.592]
[1742722187990,5.78799,2015.3,2015.1,4.592]
[1742722188987,5.78799,2015.3,2015.2,0.6284134]
[1742722190195,7.29060186,2015.3,2015.2,0.6284134]
[1742722190389,4.9625,2015.2,2015.0,30.822]
[1742722190565,4.9625,2015.2,2015.0,26.229]
[1742722190769,4.9625,2015.2,2015.0,30.822]
[1742722191457,4.96253,2015.1,2015.0,30.822]
[1742722196301,4.96253,2015.1,2015.0,4.593]
[1742722202508,4.9625,2015.2,2015.0,4.593]
[1742722204400,5.29561186,2015.5,2015.0,5.2424]
[1742722204583,9.92396,2015.4,2015.0,10.20505]
[1742722205006,4.96204,2015.3,2015.0,10.20505]
[1742722205383,4.96204,2015.3,2015.0,5.2424]
[1742722209198,9.92429,2015.3,2015.0,5.2424]
[1742722209907,4.96204,2015.3,2015.0,5.2424]
[1742722212719,4.96229,2015.2,2015.0,5.2424]
[1742722213221,4.96229,2015.2,2015.0,4.593]
[1742722217229,4.96253,2015.1,2014.9,26.238]
[1742722217519,4.96277,2015.0,2014.9,26.238]
[1742722217727,4.96277,2015.0,2014.9,30.832]
[1742722218288,10.73617,2015.1,2014.9,30.832]
[1742722218494,4.96253,2015.1,2014.9,31.4814]
[1742722219930,4.96209,2015.3,2014.9,37.94694186]
[1742722220130,4.96182,2015.4,2015.0,6.46535186]
[1742722220300,4.96182,2015.4,2014.9,37.94697186]
[1742722220626,4.96204,2015.3,2014.9,37.94697186]
[1742722222701,4.96204,2015.3,2015.0,0.63651889]
[1742722224927,5.77249,2015.6,2015.2,1.50261186]
[1742722225136,4.96157,2015.5,2015.3,4.594]
[1742722225425,4.96157,2015.5,2015.4,0.63639697]
[1742722225632,4.96157,2015.5,2015.3,4.594]
[1742722226002,4.96157,2015.5,2015.4,0.63639697]
[1742722226316,4.96157,2015.5,2015.3,4.594]
[1742722226522,4.96157,2015.5,2015.4,0.63639697]
[1742722226931,4.96157,2015.5,2015.3,4.594]
[1742722227231,4.96157,2015.5,2015.4,0.63639697]
[1742722227398,4.96157,2015.5,2015.3,4.594]
[1742722227600,4.96157,2015.5,2015.4,0.63639697]
[1742722227799,4.96157,2015.5,2015.3,4.594]
[1742722228022,4.96157,2015.5,2015.4,0.63639697]
[1742722228329,4.96179,2015.4,2015.3,4.594]
[1742722229232,6.18548719,2015.4,2015.3,4.594]
[1742722229732,4.96179,2015.4,2015.3,4.594]
[1742722232034,4.96179,2015.4,2015.3,5.22972646]
[1742722237634,7.27910186,2015.4,2015.3,0.63572646]
[1742722237835,4.96276,2015.1,2014.9,26.238]
[1742722238139,4.96276,2015.1,2014.9,30.831]